lending/lending_fUSD_20251124
["ID","MTS","AMOUNT","RATE_DAILY","PERIOD"]
[394811456,1763973074197,-151.0,0.00041976,120]
[394811457,1763973074206,-151.0,0.00041976,120]
[394811458,1763973074215,-187.629962,0.00041976,120]
[394811459,1763973074224,-181.616462,0.00041976,120]
[394811460,1763973074234,-151.0,0.00041976,120]
[394811461,1763973074243,-151.0,0.00041976,120]
[394811462,1763973074252,-187.629962,0.00041976,120]
[394811463,1763973074262,-230.071498,0.00041976,120]
[394811464,1763973074272,-151.0,0.00041976,120]
[394811465,1763973074281,-151.0,0.00041976,120]
[394811466,1763973074290,-187.629962,0.00041976,120]
[394811467,1763973074299,-151.0,0.00041976,120]
[394811468,1763973074308,-187.629962,0.00041976,120]
[394811469,1763973074317,-187.629962,0.00041976,120]
[394811470,1763973074327,-151.0,0.00041976,120]
[394811471,1763973074336,-187.629962,0.00041976,120]
[394811472,1763973074345,-151.0,0.00041976,120]
[394811473,1763973074354,-151.0,0.00041976,120]
[394811474,1763973074364,-187.629962,0.00041976,120]
[394811475,1763973074373,-185.492056,0.00041976,120]
[394811476,1763973074382,-187.629962,0.00041976,120]
[394811477,1763973074391,-187.629962,0.00041976,120]
[394811478,1763973074400,-187.629962,0.00041976,120]
[394811479,1763973074409,-58202.46539971,0.00041976,7]
[394811480,1763973074623,-481.81133,0.00041976,7]
[394811481,1763973074633,-1318.07995841,0.00041976,7]
[394811482,1763973074836,-722.39310749,0.00036592,2]
[394811483,1763973074847,-570.12750539,0.00036592,2]
[394811484,1763973074857,-1097.0,0.00036592,2]
[394811485,1763973074869,-110.47938712,0.00036592,2]
[394811486,1763973074878,-166.25018838,0.00036673,5]
[394811487,1763973074887,-46.98298515,0.00036692,8]
[394811488,1763973074898,-477.35717976,0.00036692,8]
[394811489,1763973074907,-213.88,0.00036692,8]
[394811490,1763973074917,-99.07385939,0.00036692,8]
[394811491,1763973074946,-405.89614061,0.00036692,8]
[394811492,1763973074955,-500.0,0.00036692,8]
[394811493,1763973074964,-500.0,0.00036692,8]
[394811494,1763973074973,-610.99,0.00036692,8]
[394811495,1763973074985,-500.0,0.00036692,8]
[394811496,1763973074994,-255.15535476,0.00036693,8]
[394811497,1763973075003,-187.629962,0.0004141,120]
[394811498,1763973075012,-187.629962,0.00041976,120]
[394811499,1763973075024,-187.629962,0.00041976,120]
[394811500,1763973075033,-187.629962,0.00041976,120]
[394811501,1763973075042,-187.629953,0.00041976,120]
[394811502,1763973075053,-190184.57711851,0.00041976,7]
[394811503,1763973075067,-903.42,0.00041976,7]
[394811504,1763973075082,-2708.11029079,0.00041976,7]
[394811712,1763974231415,-153.63,0.00019509,2]
[394811713,1763974231424,-153.63,0.00029263,2]
[394811715,1763974231434,-165.2692627,0.0003141,119]
[394811716,1763974231445,-134.7307373,0.0003141,119]
[394811717,1763974231454,-300.0,0.0003141,119]
[394811718,1763974231464,-6.95841178,0.0003141,119]
[394811719,1763974231476,-154.04187328,0.0003141,119]
[394811720,1763974231485,-151.0,0.00032877,90]
[394811721,1763974231495,-1252.56854022,0.00035886,2]
[394811722,1763974231519,-2302.73388437,0.00035886,2]
[394811723,1763974231528,-150.0,0.00036169,2]
[394811724,1763974231538,-780.0,0.00036225,3]
[394811725,1763974231547,-4301.94,0.00036226,2]
[394811726,1763974231556,-157.39512119,0.00036377,76]
[394811727,1763974231566,-999.0,0.0003639,3]
[394811728,1763974231576,-197.62328929,0.00036477,2]
[394811729,1763974231586,-261.4838578,0.00036594,2]
[394811730,1763974231595,-400.0,0.00036599,2]
[394811731,1763974231605,-410.0,0.000366,2]
[394811732,1763974231614,-107.51998087,0.00036673,5]
[394811741,1763974237377,-392.48001913,0.00036673,5]
[394811742,1763974237387,-500.0,0.00036673,5]
[394811743,1763974237396,-500.0,0.00036673,5]
[394811744,1763974237405,-500.0,0.00036673,5]
[394811745,1763974237414,-721.644,0.00036691,46]
[394811746,1763974237424,-550.0,0.00036691,2]
[394811747,1763974237433,-388.99237797,0.00036692,8]
[394811748,1763974237471,-115.75603373,0.00036692,8]
[394811749,1763974237480,-500.0,0.00036692,8]
[394811750,1763974237489,-228.04492357,0.00036692,8]
[394811759,1763974239765,-274.27421248,0.00036692,8]
[394811760,1763974239775,-9.31719012,0.00036692,8]
[394811761,1763974239784,-490.68280988,0.00036692,8]
[394811762,1763974239794,-503.02297782,0.00036692,8]
[394811763,1763974239803,-152.83990184,0.00036692,8]
[394811764,1763974239813,-508.52903752,0.00036692,8]
[394811765,1763974239823,-493.04,0.00036692,8]
[394811766,1763974239832,-500.0,0.00036692,8]
[394811767,1763974239841,-608.64,0.00036692,8]
[394811768,1763974239851,-500.0,0.00036692,8]
[394811769,1763974239861,-28.18603598,0.00036692,8]
[394811770,1763974239873,-471.81396402,0.00036692,8]
[394811771,1763974239883,-422.97,0.00036692,8]
[394811772,1763974239892,-500.0,0.00036692,8]
[394811773,1763974239902,-500.0,0.00036692,8]
[394811774,1763974239911,-410.39,0.00036692,8]
[394811775,1763974239920,-507.28686113,0.00036692,8]
[394811776,1763974239929,-500.0,0.00036692,8]
[394811777,1763974239938,-500.0,0.00036692,7]
[394811778,1763974239947,-504.83361039,0.00036692,8]
[394811779,1763974239956,-506.33195404,0.00036692,8]
[394811780,1763974239968,-529.07468476,0.00036692,8]
[394811781,1763974239977,-510.16491401,0.00036692,8]
[394811782,1763974239986,-503.273257,0.00036692,8]
[394811783,1763974239996,-505.41047958,0.00036692,8]
[394811784,1763974240005,-511.98663914,0.00036692,8]
[394811785,1763974240014,-500.0,0.00036692,8]
[394811786,1763974240023,-500.0,0.00036692,8]
[394811787,1763974240033,-500.0,0.00036692,8]
[394811788,1763974240042,-500.0,0.00036692,8]
[394811789,1763974240051,-607.63214402,0.00036692,8]
[394811790,1763974240061,-500.0,0.00036692,8]
[394811791,1763974240070,-500.0,0.00036692,8]
[394811792,1763974240080,-313.36343961,0.00036692,8]
[394811793,1763974240089,-500.0,0.00036692,8]
[394811794,1763974240099,-500.0,0.00036692,8]
[394811795,1763974240108,-500.0,0.00036692,8]
[394811796,1763974240117,-500.0,0.00036692,8]
[394811797,1763974240126,-500.0,0.00036692,8]
[394811798,1763974240135,-500.0,0.00036692,8]
[394811799,1763974240144,-500.0,0.00036692,8]
[394811800,1763974240154,-500.0,0.00036692,8]
[394811801,1763974240163,-500.0,0.00036692,8]
[394811802,1763974240173,-500.0,0.00036692,8]
[394811803,1763974240182,-500.0,0.00036692,8]
[394811804,1763974240192,-500.0,0.00036692,8]
[394811805,1763974240201,-500.0,0.00036692,8]
[394811806,1763974240210,-500.0,0.00036692,8]
[394811807,1763974240220,-500.0,0.00036692,8]
[394811808,1763974240230,-196.92168843,0.00036692,8]
[394811809,1763974240239,-500.0,0.00036692,8]
[394811810,1763974240249,-500.0,0.00036692,8]
[394811811,1763974240258,-500.0,0.00036692,8]
[394811812,1763974240267,-781.65,0.00036692,2]
[394811813,1763974240278,-434.89,0.00036692,2]
[394811814,1763974240289,-500.0,0.00036692,8]
[394811815,1763974240299,-506.67692169,0.00036692,8]
[394811816,1763974240309,-500.0,0.00036692,8]
[394811817,1763974240319,-511.55,0.00036692,14]
[394811818,1763974240329,-500.0,0.00036693,8]
[394811819,1763974240339,-197.62328928,0.00036799,2]
[394811820,1763974240349,-1000.0,0.00036941,2]
[394811821,1763974240359,-500.0,0.00036966,8]
[394811822,1763974240368,-153.84824977,0.00036966,8]
[394811823,1763974240378,-187.01,0.00036966,8]
[394811824,1763974240387,-500.0,0.00036966,8]
[394811825,1763974240397,-505.07,0.00036966,8]
[394811826,1763974240405,-500.0,0.00036966,8]
[394811827,1763974240415,-500.0,0.00036966,8]
[394811828,1763974240424,-500.0,0.00036966,8]
[394811829,1763974240434,-500.0,0.00036966,8]
[394811830,1763974240444,-500.0,0.00036966,8]
[394811831,1763974240453,-500.0,0.00036966,8]
[394811832,1763974240463,-393.5,0.00036966,8]
[394811833,1763974240473,-500.0,0.00036966,8]
[394811834,1763974240482,-500.0,0.00036966,8]
[394811835,1763974240491,-511.55,0.00036966,14]
[394811836,1763974240501,-205.45472991,0.00036967,8]
[394811837,1763974240510,-1458.0,0.00036986,30]
[394811838,1763974240520,-371.26,0.00036986,30]
[394811839,1763974240529,-197.62328928,0.00037121,2]
[394811840,1763974240538,-500.0,0.00037221,5]
[394811841,1763974240548,-1000.0,0.00037221,5]
[394811842,1763974240557,-1000.0,0.00037221,5]
[394811843,1763974240566,-500.0,0.0003724,8]
[394811844,1763974240576,-458.19166373,0.0003724,8]
[394811845,1763974240586,-181.15945199,0.0003724,8]
[394811846,1763974240598,-34.45867877,0.0003724,8]
[394811847,1763974240607,-500.0,0.0003724,8]
[394811848,1763974240615,-500.0,0.0003724,8]
[394811849,1763974240624,-500.0,0.0003724,8]
[394811850,1763974240633,-251.24,0.0003724,8]
[394811851,1763974240642,-511.55,0.0003724,14]
[394811852,1763974240651,-1595.14059925,0.00037301,2]
[394811853,1763974240661,-229.98139544,0.00037514,8]
[394811854,1763974240671,-500.0,0.00037514,8]
[394811855,1763974240680,-511.55,0.00037514,14]
[394811856,1763974240689,-500.0,0.00037768,5]
[394811857,1763974240699,-150.0,0.00037775,7]
[394811858,1763974240708,-150.0,0.00037775,7]
[394811859,1763974240718,-150.0,0.00037775,7]
[394811860,1763974240729,-152.10113013,0.00037775,7]
[394811861,1763974240738,-150.00000001,0.00037775,7]
[394811862,1763974240747,-150.0,0.00037775,7]
[394811863,1763974240757,-500.0,0.00037788,8]
[394811864,1763974240767,-511.55,0.00037788,14]
[394811865,1763974240777,-511.59,0.00038062,14]
[394811866,1763974240786,-229.3281964,0.00038344,2]
[394811876,1763974245552,-3492.28975705,0.00038344,2]
[394811877,1763974245563,-378.95758642,0.00038595,2]
[394811878,1763974245572,-500.0,0.00038595,15]
[394811879,1763974245581,-500.0,0.00038595,15]
[394811880,1763974245590,-500.0,0.00038595,15]
[394811881,1763974245768,-566.00938475,0.00038595,15]
[394811882,1763974245782,-500.0,0.00038595,8]
[394811883,1763974245792,-500.28,0.00038595,8]
[394811884,1763974245802,-257.49,0.00038595,8]
[394811885,1763974245811,-500.0,0.00038595,8]
[394811886,1763974245820,-405.58810803,0.00038595,8]
[394811887,1763974245830,-500.0,0.00038595,8]
[394811888,1763974245839,-619.11726001,0.00038595,8]
[394811889,1763974245848,-533.23985474,0.00038595,8]
[394811890,1763974245858,-500.0,0.00038595,8]
[394811891,1763974245867,-500.0,0.00038595,8]
[394811892,1763974245877,-500.0,0.00038595,8]
[394811893,1763974245886,-275.5,0.00038595,8]
[394811894,1763974245896,-500.0,0.00038595,8]
[394811895,1763974245906,-500.0,0.00038595,8]
[394811896,1763974245915,-500.0,0.00038595,8]
[394811897,1763974245925,-500.0,0.00038595,8]
[394811898,1763974245935,-500.0,0.00038595,2]
[394811899,1763974245944,-500.0,0.00038595,8]
[394811900,1763974245953,-500.0,0.00038595,8]
[394811901,1763974245963,-500.0,0.00038595,8]
[394811902,1763974245972,-500.0,0.00038595,8]
[394811903,1763974245982,-506.47890686,0.00038595,8]
[394811904,1763974245992,-501.02378779,0.00038595,8]
[394811905,1763974246002,-579.28123361,0.00038595,8]
[394811906,1763974246011,-9490.300702,0.00038596,2]
[394811914,1763974834189,-151.907598,0.00031032,2]
[394811915,1763974880353,863.7495555,0.0003103,120]
[394811930,1763975431632,-592.31422507,0.00032,2]
[394811931,1763975431737,-7.76654908,0.00032,2]
[394811932,1763975431746,-154.0204295,0.0003336,2]
[394811933,1763975431756,-2552.01,0.00034643,2]
[394811934,1763975431765,-185.78,0.00034697,2]
[394811935,1763975431775,-150.0,0.00037218,2]
[394811936,1763975431784,-150.0,0.00037218,120]
[394811937,1763975431794,-1369.0,0.0003726,30]
[394811938,1763975431803,-500.0,0.00037283,5]
[394811939,1763975431812,-155.5,0.00037306,2]
[394811940,1763975431821,-1000.0,0.0003731,2]
[394811941,1763975431831,-310.29,0.00037554,2]
[394811942,1763975431841,-4342.04,0.00037575,2]
[394811943,1763975431850,-1683.54064874,0.00037751,2]
[394811944,1763975431861,-12233.16358583,0.00037751,2]
[394811945,1763975431873,-1031.98576543,0.00037751,2]
[394811946,1763975431883,-150.0,0.00037775,7]
[394811947,1763975431892,-150.0,0.00037775,7]
[394811948,1763975431901,-150.0,0.00037775,7]
[394811949,1763975431911,-19.03632539,0.00037775,7]
[394811950,1763975431922,-130.96367461,0.00037775,7]
[394811951,1763975431931,-150.0,0.00037775,7]
[394811952,1763975431941,-151.82906016,0.00037775,7]
[394811954,1763975431950,-150.0,0.00037775,7]
[394811956,1763975431960,-150.0,0.00037775,7]
[394811958,1763975431969,-150.0,0.00037775,7]
[394811960,1763975431978,-150.0,0.00037775,7]
[394811961,1763975431988,-150.0,0.00037775,7]
[394811962,1763975431997,-532.0,0.00037885,120]
[394811963,1763975432006,-36.66588696,0.00037891,30]
[394811964,1763975432018,-124.41411304,0.00037891,30]
[394811965,1763975432027,-550.0,0.00037999,2]
[394811966,1763975432036,-310.0,0.00038,30]
[394811967,1763975432045,-1000.0,0.00038,25]
[394811968,1763975432054,-297.25302941,0.00038,20]
[394811969,1763975432066,-702.74697059,0.00038,20]
[394811970,1763975432076,-1046.0,0.00038,15]
[394811971,1763975432085,-1000.0,0.00038,12]
[394811972,1763975432096,-1005.0,0.00038,12]
[394811973,1763975432106,-1006.0,0.00038,12]
[394811974,1763975432115,-316.37233088,0.00038,50]
[394811975,1763975432126,-715.57166912,0.00038,50]
[394811976,1763975432136,-168.7,0.00038,50]
[394811977,1763975432145,-1000.0,0.00038061,3]
[394811978,1763975432155,-150.0,0.00038075,7]
[394811979,1763975432164,-150.0,0.00038125,7]
[394811980,1763975432173,-150.0,0.00038157,7]
[394811981,1763975432183,-218.8231771,0.00038191,2]
[394811982,1763975432193,-150.0,0.00038195,7]
[394811983,1763975432203,-3410.49439048,0.0003822,2]
[394811984,1763975432212,-9135.12637661,0.00038238,2]
[394811985,1763975432221,-601.70480856,0.00038299,2]
[394811986,1763975432230,-1503.25422192,0.000383,2]
[394811987,1763975432240,-150.0,0.000383,7]
[394811988,1763975432249,-19623.63505506,0.00038322,2]
[394811989,1763975432260,-4184.26610192,0.00038322,2]
[394811990,1763975437567,-3357.83562371,0.00038322,2]
[394811991,1763975437624,-1360.25058712,0.00038322,2]
[394811992,1763975437678,-571.19543697,0.00038322,2]
[394811993,1763975437784,-1117.55469592,0.00038322,2]
[394811994,1763975437796,-1158.20408283,0.00038322,2]
[394812003,1763975439679,-714.30435223,0.00038322,2]
[394812004,1763975439693,-403.00720794,0.00038322,2]
[394812005,1763975439703,-756.76,0.00038328,3]
[394812006,1763975439714,-1002.07285233,0.00038338,2]
[394812007,1763975439731,-13014.40358257,0.00038338,2]
[394812008,1763975439742,-1101.0018931,0.00038338,2]
[394812009,1763975439751,-75749.112291,0.00038338,2]
[394812010,1763975439761,-3567.2108967,0.00038338,2]
[394812011,1763975439773,-1022.0236767,0.00038338,2]
[394812012,1763975439782,-605.31257722,0.00038338,2]
[394812013,1763975439792,-150.0,0.00038375,7]
[394812014,1763975439803,-5773.72795414,0.00038396,2]
[394812015,1763975439815,-250.76275403,0.00038396,15]
[394812016,1763975439826,-207.60091557,0.00038396,13]
[394812017,1763975439838,-150.0,0.00038396,2]
[394812018,1763975439848,-500.0,0.00038396,2]
[394812019,1763975439857,-150.0,0.00038396,2]
[394812020,1763975439867,-500.0,0.00038396,2]
[394812021,1763975439876,-150.0,0.00038396,2]
[394812022,1763975439886,-150.0,0.00038396,2]
[394812023,1763975439896,-6404.3908493,0.00038418,2]
[394812024,1763975439905,-501.54182264,0.00038473,5]
[394812025,1763975439916,-500.0,0.00038473,5]
[394812026,1763975439927,-500.0,0.00038473,5]
[394812027,1763975439938,-500.0,0.00038473,5]
[394812028,1763975439949,-487.28339761,0.00038473,5]
[394812029,1763975439959,-305.87253345,0.00038473,5]
[394812030,1763975439970,-150.0,0.00038475,7]
[394812031,1763975439981,-163.92,0.00038486,2]
[394812032,1763975439993,-500.0,0.00038494,8]
[394812033,1763975440003,-609.58,0.00038494,2]
[394812034,1763975440013,-500.0,0.00038494,8]
[394812035,1763975440023,-154.47390351,0.00038494,8]
[394812036,1763975440034,-500.0,0.00038494,8]
[394812037,1763975440044,-500.0,0.00038494,8]
[394812038,1763975440054,-500.0,0.00038494,8]
[394812039,1763975440064,-509.72083634,0.00038494,8]
[394812040,1763975440074,-500.0,0.00038494,2]
[394812041,1763975440085,-500.0,0.00038494,8]
[394812042,1763975440096,-500.0,0.00038494,8]
[394812043,1763975440107,-500.0,0.00038494,8]
[394812044,1763975440119,-508.41340998,0.00038495,15]
[394812045,1763975440130,-500.0,0.00038495,15]
[394812046,1763975440141,-288.41945599,0.00038495,15]
[394812047,1763975440151,-283.28495807,0.00038495,15]
[394812048,1763975440162,-500.0,0.00038495,15]
[394812049,1763975440172,-500.0,0.00038495,15]
[394812050,1763975440182,-500.0,0.00038495,15]
[394812051,1763975440194,-211.35,0.00038495,8]
[394812052,1763975440209,-500.0,0.00038495,8]
[394812053,1763975440219,-500.0,0.00038495,8]
[394812054,1763975440230,-500.0,0.00038495,8]
[394812055,1763975440241,-486.6,0.00038495,8]
[394812056,1763975440251,-515.74825733,0.00038495,8]
[394812057,1763975440261,-500.0,0.00038495,8]
[394812058,1763975440271,-500.0,0.00038495,8]
[394812059,1763975440282,-235.9429793,0.00038495,8]
[394812060,1763975440293,-500.0,0.00038495,8]
[394812061,1763975440303,-542.94,0.00038495,8]
[394812062,1763975440314,-500.0,0.00038495,8]
[394812063,1763975440324,-500.0,0.00038495,8]
[394812064,1763975440334,-500.0,0.00038495,8]
[394812065,1763975440345,-500.0,0.00038495,8]
[394812066,1763975440355,-500.0,0.00038495,8]
[394812067,1763975440365,-500.0,0.00038495,8]
[394812068,1763975440375,-500.0,0.00038495,8]
[394812069,1763975440385,-500.0,0.00038495,8]
[394812070,1763975440395,-500.0,0.00038495,8]
[394812071,1763975440405,-500.0,0.00038495,8]
[394812072,1763975440415,-500.0,0.00038495,8]
[394812073,1763975440425,-500.0,0.00038495,8]
[394812074,1763975440435,-500.0,0.00038495,8]
[394812075,1763975440446,-500.0,0.00038495,7]
[394812076,1763975440457,-500.0,0.00038495,7]
[394812077,1763975440467,-500.0,0.00038495,7]
[394812078,1763975440477,-500.0,0.00038495,8]
[394812079,1763975440487,-150.24,0.00038495,8]
[394812080,1763975440498,-500.0,0.00038495,8]
[394812081,1763975440509,-500.0,0.00038495,8]
[394812082,1763975440519,-500.0,0.00038495,8]
[394812083,1763975440530,-500.0,0.00038495,8]
[394812084,1763975440540,-340.06841791,0.00038495,8]
[394812085,1763975440551,-155.39027018,0.00038495,8]
[394812086,1763975440560,-168.15,0.00038495,8]
[394812087,1763975440571,-500.0,0.00038495,8]
[394812088,1763975440581,-213.44,0.00038495,8]
[394812089,1763975440591,-500.0,0.00038495,8]
[394812090,1763975440601,-500.0,0.00038495,8]
[394812091,1763975440613,-500.0,0.00038495,8]
[394812092,1763975440625,-500.0,0.00038495,8]
[394812093,1763975440635,-500.0,0.00038495,8]
[394812094,1763975440644,-500.0,0.00038495,8]
[394812095,1763975440655,-1000.0,0.00038495,90]
[394812096,1763975440665,-500.0,0.00038495,8]
[394812097,1763975440676,-500.0,0.00038495,8]
[394812098,1763975440687,-169.5838021,0.00038495,8]
[394812099,1763975440697,-500.0,0.00038495,8]
[394812100,1763975440707,-500.0,0.00038495,8]
[394812101,1763975440717,-500.0,0.00038495,8]
[394812102,1763975440726,-500.0,0.00038495,8]
[394812103,1763975440736,-500.0,0.00038495,8]
[394812104,1763975440747,-500.0,0.00038495,8]
[394812105,1763975440757,-500.0,0.00038495,8]
[394812106,1763975440767,-500.0,0.00038495,8]
[394812107,1763975440776,-503.72640452,0.00038495,8]
[394812108,1763975440786,-500.0,0.00038495,8]
[394812109,1763975440795,-500.0,0.00038495,8]
[394812110,1763975440805,-500.0,0.00038495,8]
[394812111,1763975440815,-500.0,0.00038495,8]
[394812112,1763975440825,-506.29482033,0.00038495,8]
[394812113,1763975440835,-500.0,0.00038495,8]
[394812114,1763975440845,-500.0,0.00038495,8]
[394812115,1763975440855,-500.0,0.00038495,8]
[394812116,1763975440865,-500.0,0.00038495,8]
[394812117,1763975440875,-500.0,0.00038495,8]
[394812118,1763975440886,-414.93365693,0.00038495,8]
[394812119,1763975440896,-500.0,0.00038495,8]
[394812120,1763975440906,-500.0,0.00038495,8]
[394812121,1763975440916,-500.0,0.00038495,8]
[394812122,1763975440927,-479.37,0.00038495,8]
[394812123,1763975440937,-500.0,0.00038495,8]
[394812124,1763975440948,-500.0,0.00038495,8]
[394812125,1763975440958,-500.0,0.00038495,8]
[394812126,1763975440968,-401.19,0.00038495,30]
[394812127,1763975440978,-500.0,0.00038495,8]
[394812128,1763975440989,-500.0,0.00038495,8]
[394812129,1763975441004,-500.0,0.00038495,8]
[394812130,1763975441015,-504.21141354,0.00038495,8]
[394812131,1763975441025,-500.0,0.00038495,8]
[394812132,1763975441034,-398.91287344,0.00038495,8]
[394812133,1763975441044,-500.0,0.00038495,8]
[394812134,1763975441055,-500.0,0.00038495,8]
[394812135,1763975441065,-613.51518901,0.00038495,8]
[394812136,1763975441075,-500.0,0.00038495,8]
[394812137,1763975441085,-500.0,0.00038495,8]
[394812138,1763975441096,-500.0,0.00038495,8]
[394812139,1763975441346,-500.0,0.00038495,8]
[394812140,1763975441361,-473.89,0.00038495,8]
[394812141,1763975441371,-439.00708877,0.00038495,8]
[394812142,1763975441379,-500.0,0.00038495,8]
[394812143,1763975441388,-649.0417843,0.00038495,8]
[394812144,1763975441397,-575.76856784,0.00038495,8]
[394812145,1763975441406,-500.0,0.00038495,7]
[394812146,1763975441416,-500.0,0.00038495,8]
[394812147,1763975441425,-500.0,0.00038495,8]
[394812148,1763975441433,-500.0,0.00038495,8]
[394812149,1763975441442,-173.847373,0.00038495,15]
[394812150,1763975441450,-150.0,0.00038495,15]
[394812151,1763975441459,-501.49089174,0.00038495,8]
[394812152,1763975441468,-500.0,0.00038495,8]
[394812153,1763975441476,-500.0,0.00038495,8]
[394812154,1763975441485,-500.0,0.00038495,8]
[394812155,1763975441494,-500.0,0.00038495,8]
[394812156,1763975441503,-500.0,0.00038495,8]
[394812157,1763975441512,-500.0,0.00038495,8]
[394812158,1763975441522,-500.0,0.00038495,8]
[394812159,1763975441532,-501.26142825,0.00038495,8]
[394812160,1763975441541,-500.0,0.00038495,8]
[394812161,1763975441549,-500.0,0.00038495,8]
[394812162,1763975441557,-500.0,0.00038495,2]
[394812163,1763975441564,-500.0,0.00038495,2]
[394812164,1763975441571,-500.0,0.00038495,2]
[394812165,1763975441578,-500.0,0.00038495,8]
[394812166,1763975441585,-500.0,0.00038495,8]
[394812167,1763975441591,-500.0,0.00038495,8]
[394812168,1763975441598,-500.0,0.00038495,8]
[394812169,1763975441606,-500.0,0.00038495,8]
[394812170,1763975441619,-500.0,0.00038495,8]
[394812171,1763975441628,-569.33,0.00038495,8]
[394812172,1763975441637,-589.51491429,0.00038495,8]
[394812173,1763975441646,-500.0,0.00038495,8]
[394812174,1763975441657,-635.48035666,0.00038495,8]
[394812175,1763975441666,-500.0,0.00038495,8]
[394812176,1763975441675,-500.0,0.00038495,8]
[394812177,1763975441686,-1106.14,0.00038495,8]
[394812178,1763975441695,-508.09659131,0.00038495,8]
[394812179,1763975441704,-500.0,0.00038495,8]
[394812180,1763975441714,-535.94408052,0.00038495,8]
[394812181,1763975441723,-500.0,0.00038495,8]
[394812182,1763975441734,-500.0,0.00038495,8]
[394812183,1763975441744,-439.37029809,0.00038495,8]
[394812184,1763975441754,-506.03125479,0.00038495,8]
[394812185,1763975441763,-500.0,0.00038495,8]
[394812186,1763975441772,-500.0,0.00038495,8]
[394812187,1763975441782,-500.0,0.00038495,8]
[394812188,1763975441791,-500.0,0.00038495,2]
[394812189,1763975441801,-717.75,0.00038495,8]
[394812190,1763975441811,-500.0,0.00038495,8]
[394812191,1763975441821,-368.15,0.00038495,8]
[394812192,1763975441830,-500.0,0.00038495,8]
[394812193,1763975441839,-336.03492657,0.00038495,8]
[394812194,1763975441848,-500.0,0.00038495,8]
[394812195,1763975441858,-500.0,0.00038495,8]
[394812196,1763975441867,-520.3137448,0.00038495,8]
[394812197,1763975441876,-500.0,0.00038495,8]
[394812198,1763975441885,-500.0,0.00038495,8]
[394812199,1763975441895,-500.0,0.00038495,8]
[394812200,1763975441904,-500.0,0.00038495,8]
[394812201,1763975441913,-1038.59,0.00038495,8]
[394812202,1763975441922,-500.0,0.00038495,8]
[394812203,1763975441932,-329.78,0.00038495,8]
[394812204,1763975441941,-597.41,0.00038495,8]
[394812205,1763975441951,-500.0,0.00038495,8]
[394812206,1763975441960,-387.23781826,0.00038495,8]
[394812207,1763975441969,-500.0,0.00038495,8]
[394812208,1763975441978,-500.0,0.00038495,8]
[394812209,1763975441987,-500.0,0.00038495,8]
[394812210,1763975441996,-500.0,0.00038495,8]
[394812211,1763975442005,-500.0,0.00038495,8]
[394812212,1763975442014,-500.0,0.00038495,8]
[394812213,1763975442024,-515.68,0.00038495,8]
[394812214,1763975442034,-500.0,0.00038495,8]
[394812215,1763975442043,-500.0,0.00038495,8]
[394812216,1763975442053,-500.0,0.00038495,8]
[394812217,1763975442062,-500.42388726,0.00038495,8]
[394812218,1763975442072,-500.0,0.00038495,8]
[394812219,1763975442081,-500.0,0.00038495,8]
[394812220,1763975442091,-500.0,0.00038495,8]
[394812221,1763975442100,-501.83279924,0.00038495,8]